Workbook

Sheet Лист1
A1: Школа | C1: МАОУ гимназия № 155 | F1: Утвердил: | G1: должность | H1: директор
A2: Типовое примерное меню приготавливаемых блюд | G2: фамилия | H2: В.А.Комолова
A3: Возрастная категория | E3: 7-11 лет | G3: дата | H3: 15 | I3: 2 | J3: 2026
H4: день | I4: месяц | J4: год
A5: Неделя | B5: День недели | C5: Прием пищи | D5: Раздел меню | E5: Блюда | F5: Вес блюда, г | G5: Белки | H5: Жиры | I5: Углеводы | J5: Калорийность | K5: № рецептуры | L5: Цена
A6: 1 | B6: 1 | C6: Завтрак | D6: гор.блюдо | E6: Каша из хлопьев овсяных "Геркулес" на молоке с маслом сливочным | F6: 205 | G6: 10.38 | H6: 15.86 | I6: 37.92 | J6: 239.88 | K6: ="257" -> 257 | L6: 46.04
D7: гор.напиток | E7: Какао с молоком | F7: 200 | G7: 4 | H7: 3.68 | I7: 25.8 | J7: 148.12 | K7: ="642" -> 642 | L7: 32.82
D8: фрукты | E8: Фрукты свежие(яблоко) | F8: 110 | G8: 0.44 | I8: 12.43 | J8: 50.6 | L8: 16.76
D9: булочное | E9: Блинчик с вишней | F9: 80 | G9: 8.5 | H9: 8 | I9: 43 | J9: 272.48 | K9: ТТК | L9: 50.12
D10: хлеб | E10: Хлеб пшеничный витаминизированный | F10: 40 | G10: 2.4 | H10: 0.3 | I10: 14.4 | J10: 72 | K10: пром. | L10: 3.78
D13: итого | F13: =SUM(F6:F10) -> 635 | G13: =SUM(G6:G10) -> 25.72 | H13: =SUM(H6:H10) -> 27.84 | I13: =SUM(I6:I10) -> 133.55 | J13: =SUM(J6:J10) -> 783.08 | L13: =SUM(L6:L10) -> 149.52
A14: =A6 -> 1 | B14: =B6 -> 1 | C14: Обед | D14: закуска | E14: Огурчик пикантный | F14: 60 | G14: 0.39 | H14: 4.61 | I14: 1 | J14: 47.02 | K14: ТТК | L14: 36.66
D15: 1 блюдо | E15: Щи из свежей капусты на курином бульоне со сметаной | F15: 260 | G15: 6.16 | H15: 4.54 | I15: 9.3 | J15: 106.69 | K15: ="120" -> 120 | L15: 31.78
D16: 2 блюдо | E16: Индейка тушеная | F16: 110 | G16: 22.41 | H16: 16.61 | I16: 2.21 | J16: 249.74 | K16: ТТК | L16: 86.35
D17: гарнир | E17: Рис по турецки с вермишелью | F17: 150 | G17: 4.06 | H17: 3.85 | I17: 38.08 | J17: 103.51 | K17: ТТК | L17: 15.01
D18: напиток | E18: Напиток вишневый | F18: 200 | G18: 0.32 | H18: 0.08 | I18: 26.88 | J18: 103.51 | K18: ТТК | L18: 31.94
D19: фрукты | E19: Фрукты свежие (яблоко) | F19: 120 | G19: 0.44 | I19: 12.43 | J19: 50.6 | L19: 18.28
D20: хлеб бел. | E20: Хлеб пшеничный витаминизированный | F20: 25 | G20: 2.8 | H20: 0.35 | I20: 16.8 | J20: 84 | K20: пром. | L20: 2.36
D21: хлеб черн. | E21: Хлеб ржаной | F21: 20 | G21: 1.6 | H21: 0.2 | I21: 9.3 | J21: 46 | K21: пром. | L21: 1.89
D23: итого | F23: =SUM(F14:F21) -> 945 | G23: =SUM(G14:G21) -> 38.18 | H23: 30.24 | I23: 116 | J23: 791.07 | L23: =SUM(L14:L21) -> 224.27
A24: =A6 -> 1 | B24: =B6 -> 1 | C24: Итого за день: | F24: =SUM(F13,F23) -> 1580 | G24: =SUM(G13,G23) -> 63.9 | H24: 58.08 | I24: 249.55 | J24: 1574.15 | L24: =SUM(L13,L23) -> 373.79
A25: 1 | B25: 2 | C25: Завтрак | D25: гор.блюдо | E25: Ежики с рисом | F25: 70 | G25: 9.08 | H25: 12.28 | I25: 9.92 | J25: 186.83 | K25: ="562" -> 562 | L25: 67.83
D26: гор.блюдо | E26: Пюре картофельное | F26: 150 | G26: 3.14 | H26: 5.63 | I26: 20.15 | J26: 148.5 | K26: ="472" -> 472 | L26: 30.74
D27: гор.напиток | E27: Чай с сахаром, лимоном | F27: 207 | G27: 0.12 | I27: 16.28 | J27: 62.5 | K27: ="686" -> 686 | L27: 7.38
D28: кисломол. | E28: Творог для детей "Наша Маша" | F28: 100 | G28: 7.6 | H28: 4.2 | I28: 11.7 | J28: 115 | K28: пром. | L28: 36.96
D29: хлеб | E29: Хлеб пшеничный витаминизированный | F29: 40 | G29: 3.2 | H29: 0.4 | I29: 19.2 | J29: 96 | K29: пром. | L29: 3.78
D30: хлеб | E30: Хлеб ржаной | F30: 30 | G30: 2.4 | H30: 0.3 | I30: 13.95 | J30: 69 | K30: пром. | L30: 2.83
D32: итого | F32: =SUM(F25:F30) -> 597 | G32: =SUM(G25:G30) -> 25.54 | H32: 22.81 | I32: 91.2 | J32: 677.83 | L32: =SUM(L25:L30) -> 149.52
A33: =A25 -> 1 | B33: =B25 -> 2 | C33: Обед | D33: закуска | E33: Помидор пикантный | F33: 60 | G33: 0.36 | H33: 5.99 | I33: 1.74 | J33: 62.32 | K33: ТТК | L33: 34.74
D34: 1 блюдо | E34: Рассольник домашний на курином бульоне со сметаной | F34: 260 | G34: 5.06 | H34: 4.18 | I34: 14.59 | J34: 120.95 | K34: ="128" -> 128 | L34: 36.94
D35: 2 блюдо | E35: Ежики с рисом | F35: 90 | G35: 11.68 | H35: 15.79 | I35: 12.75 | J35: 240.23 | K35: ="562" -> 562 | L35: 87.44
D36: гарнир | E36: Пюре картофельное | F36: 150 | G36: 3.14 | H36: 5.63 | I36: 20.15 | J36: 148.5 | K36: ="472" -> 472 | L36: 30.74
D37: напиток | E37: Напиток из брусники | F37: 200 | G37: 0.32 | H37: 0.08 | I37: 26.88 | J37: 103.51 | K37: ТТК | L37: 28.74
D38: хлеб бел. | E38: Хлеб пшеничный витаминизированный | F38: 40 | G38: 3.2 | H38: 0.4 | I38: 19.2 | J38: 96 | K38: пром. | L38: 3.78
D39: хлеб черн. | E39: Хлеб ржаной | F39: 20 | G39: 1.6 | H39: 0.2 | I39: 9.3 | J39: 46 | K39: пром. | L39: 1.89
D42: итого | F42: =SUM(F33:F39) -> 820 | G42: =SUM(G33:G39) -> 25.36 | H42: 32.27 | I42: 104.61 | J42: 817.51 | L42: =SUM(L33:L41) -> 224.27
A43: =A25 -> 1 | B43: =B25 -> 2 | C43: Итого за день: | F43: =SUM(F32,F42) -> 1417 | G43: =SUM(G32,G42) -> 50.9 | H43: 55.08 | I43: 195.81 | J43: 1495.34 | L43: =L32+L42 -> 373.79
A44: 1 | B44: 3 | C44: Завтрак | D44: гор.блюдо | E44: Фрикадельки из курицы с маслом сливочным,отрубями | F44: 80 | G44: 12.56 | H44: 9.23 | I44: 6.54 | J44: 166.75 | K44: ="63" -> 63 | L44: 61.85
D45: гор.блюдо | E45: Макаронные изделия отварные Ассорти с сыром | F45: 150 | G45: 9.32 | H45: 11.84 | I45: 31.34 | J45: 270.56 | K45: ="274" -> 274 | L45: 48.1
D46: закуска | E46: Огурчик пикантный(подгарнировка) | F46: 38 | G46: 0.25 | H46: 3.1 | I46: 0.63 | J46: 31.36 | K46: ТТК | L46: 21.49
D47: гор.напиток | E47: Кофейный напиток с молоком | F47: 200 | G47: 1.87 | H47: 1.6 | I47: 24.05 | J47: 119.92 | K47: ="692" -> 692 | L47: 14.3
D48: хлеб | E48: Хлеб пшеничный витаминизированный | F48: 20 | G48: 1.6 | H48: 0.2 | I48: 9.6 | J48: 48 | K48: пром. | L48: 1.89
D49: хлеб | E49: Хлеб ржаной | F49: 20 | G49: 1.6 | H49: 0.2 | I49: 9.3 | J49: 46 | K49: пром. | L49: 1.89
D52: итого | F52: =SUM(F44:F49) -> 508 | G52: =SUM(G44:G49) -> 27.2 | H52: 26.17 | I52: 81.46 | J52: 682.59 | L52: =SUM(L44:L49) -> 149.52
A53: =A44 -> 1 | B53: =B44 -> 3 | C53: Обед | D53: 1 блюдо | E53: Уха с перловой крупой | F53: 275 | G53: 8.62 | H53: 4.95 | I53: 15.24 | J53: 139.97 | K53: ="181" -> 181 | L53: 43.45
D54: 2 блюдо | E54: Фрикадельки из курицы с маслом сливочным,отрубями | F54: 90 | G54: 14.22 | H54: 9.85 | I54: 7.35 | J54: 183.29 | K54: ="63" -> 63 | L54: 68.36
D55: гарнир | E55: Макаронные изделия отварные Ассорти с сыром | F55: 150 | G55: 9.32 | H55: 11.84 | I55: 31.34 | J55: 270.56 | K55: ="274" -> 274 | L55: 48.1
D56: напиток | E56: Напиток из плодов шиповника | F56: 200 | G56: 0.86 | I56: 31.9 | J56: 125.4 | K56: 705 | L56: 9.05
D57: булочное | E57: Блинчик с вишней | F57: 80 | G57: 8.5 | H57: 14.2 | I57: 37.61 | J57: 324.67 | K57: ТТК | L57: 50.12
D58: хлеб бел. | E58: Хлеб пшеничный витаминизированный | F58: 35 | G58: 2 | H58: 0.25 | I58: 12 | J58: 60 | K58: пром. | L58: 3.3
D59: хлеб черн. | E59: Хлеб ржаной | F59: 20 | G59: 1.6 | H59: 0.2 | I59: 9.3 | J59: 46 | K59: пром. | L59: 1.89
D62: итого | F62: =SUM(F53:F59) -> 850 | G62: =SUM(G53:G59) -> 45.12 | H62: 41.29 | I62: 144.74 | J62: 1149.89 | L62: =SUM(L53:L59) -> 224.27
A63: =A44 -> 1 | B63: =B44 -> 3 | C63: Итого за день: | F63: =SUM(F52,F62) -> 1358 | G63: =SUM(G52,G62) -> 72.32 | H63: 67.46 | I63: 226.2 | J63: 1832.48 | L63: =L52+L62 -> 373.79
A64: 1 | B64: 4 | C64: Завтрак | D64: гор.блюдо | E64: Запеканка из творога со сгущенным молоком | F64: 80 | G64: 12.79 | H64: 9.26 | I64: 16.77 | J64: 200.08 | K64: ="297" -> 297 | L64: 71.74
D65: гор.блюдо | E65: Каша пшенная вязкая с маслом сливочным | F65: 260 | G65: 11.04 | H65: 13.9 | I65: 51.52 | J65: 364.9 | K65: ="257" -> 257 | L65: 48.45
D66: гор.напиток | E66: Чай с сахаром, лимоном | F66: 207 | G66: 0.11 | I66: 15.18 | J66: 58.28 | K66: ="686" -> 686 | L66: 7.38
D67: фрукты | E67: Фрукты свежие (яблоко) | F67: 110 | G67: 0.44 | I67: 12.43 | J67: 50.6 | L67: 16.76
D68: хлеб | E68: Хлеб пшеничный витаминизированный | F68: 35 | G68: 2.4 | H68: 0.3 | I68: 14.4 | J68: 72 | K68: пром. | L68: 3.3
D69: хлеб | E69: Хлеб ржаной | F69: 20 | G69: 1.6 | H69: 0.2 | I69: 9.3 | J69: 46 | K69: пром. | L69: 1.89
D71: итого | F71: =SUM(F64:F69) -> 712 | G71: =SUM(G64:G69) -> 28.38 | H71: 23.66 | I71: 119.6 | J71: 791.86 | L71: =SUM(L64:L69) -> 149.52
A72: =A64 -> 1 | B72: =B64 -> 4 | C72: Обед | D72: закуска | E72: Помидор пикантный | F72: 60 | G72: 0.36 | H72: 5.99 | I72: 1.74 | J72: 62.32 | K72: ТТК | L72: 31.56
D73: 1 блюдо | E73: Суп картофельный с мак. изд. на курином бульоне | F73: 250 | G73: 6.63 | H73: 2.87 | I73: 17.63 | J73: 128.24 | K73: ="139" -> 139 | L73: 27.81
D74: 2 блюдо | E74: Гуляш из говядины | F74: 110 | G74: 16.57 | H74: 13.9 | I74: 3.73 | J74: 209.43 | K74: ="401" -> 401 | L74: 129.84
D75: гарнир | E75: Булгур с овощами | F75: 150 | G75: 5.47 | H75: 2.6 | I75: 33.33 | J75: 169.93 | K75: ТТК | L75: 20.5
D76: напиток | E76: Компот из кураги | F76: 200 | G76: 1.1 | I76: 33.08 | J76: 129.2 | K76: ="588" -> 588 | L76: 9.84
D77: хлеб бел. | E77: Хлеб пшеничный витаминизированный | F77: 30 | G77: 2.4 | H77: 0.3 | I77: 14.4 | J77: 72 | K77: пром. | L77: 2.83
D78: хлеб черн. | E78: Хлеб ржаной | F78: 20 | G78: 1.6 | H78: 0.2 | I78: 9.3 | J78: 46 | K78: пром. | L78: 1.89
D81: итого | F81: =SUM(F72:F78) -> 820 | G81: =SUM(G72:G78) -> 34.13 | H81: 25.86 | I81: 113.21 | J81: 817.12 | L81: =SUM(L72:L78) -> 224.27
A82: =A64 -> 1 | B82: =B64 -> 4 | C82: Итого за день: | F82: =SUM(F71,F81) -> 1532 | G82: =SUM(G71,G81) -> 62.51 | H82: 49.52 | I82: 232.81 | J82: 1608.98 | L82: =L71+L81 -> 373.79
A83: 1 | B83: 5 | C83: Завтрак | D83: гор.блюдо | E83: Каша гречневая Царская с курицей и овощами | F83: 200 | G83: 18.01 | H83: 7.71 | I83: 23.18 | J83: 239.76 | K83: ТТК | L83: 77.82
D84: закуска | E84: Помидор пикантный(подгарнировка) | F84: 45 | G84: 0.25 | H84: 3.67 | I84: 1.2 | J84: 38.8 | K84: ТТК | L84: 25.51
D85: гор.напиток | E85: Чай ягодный (брусника) | F85: 200 | G85: 0.18 | H85: 0.04 | I85: 21.34 | J85: 81.41 | K85: ТТК | L85: 15.44
D86: булочное | E86: Блины классические со сгущеным молоком | F86: 60 | G86: 4.12 | H86: 6.35 | I86: 17.5 | J86: 143.98 | K86: пром. | L86: 25.42
D87: хлеб | E87: Хлеб пшеничный Уральское солнышко | F87: 35 | G87: 2.98 | H87: 1.4 | I87: 19.32 | J87: 103.25 | K87: пром. | L87: 3.44
D88: хлеб | E88: Хлеб ржаной | F88: 20 | G88: 1.6 | H88: 0.2 | I88: 9.3 | J88: 46 | K88: пром. | L88: 1.89
D90: итого | F90: =SUM(F83:F88) -> 560 | G90: =SUM(G83:G88) -> 27.14 | H90: 19.37 | I90: 91.84 | J90: 653.2 | L90: =SUM(L83:L88) -> 149.52
A91: =A83 -> 1 | B91: =B83 -> 5 | C91: Обед | D91: закуска | E91: Капуста квашеная с маслом растительным | F91: 60 | G91: 0.23 | H91: 3 | I91: 3.37 | J91: 40.61 | K91: ТТК | L91: 19.48
D92: 1 блюдо | E92: Борщ с капустой, картофелем на мясном бульоне со сметаной | F92: 260 | G92: 4.61 | H92: 8.55 | I92: 13.08 | J92: 150.03 | K92: ФБУН | L92: 45.31
D93: 2 блюдо | E93: Запеканка картофельная с мясом | F93: 243 | G93: 18.75 | H93: 19.47 | I93: 39.89 | J93: 421.12 | K93: ="430" -> 430 | L93: 149.72
D94: напиток | E94: Компот из смеси сухофруктов | F94: 200 | G94: 1.1 | H94: 0.06 | I94: 20.92 | J94: 121.2 | K94: 588 | L94: 5.91
D95: хлеб бел. | E95: Хлеб пшеничный Уральское солнышко | F95: 20 | G95: 1.7 | H95: 0.8 | I95: 11.04 | J95: 59 | K95: пром. | L95: 1.96
D96: хлеб черн. | E96: Хлеб ржаной | F96: 20 | G96: 1.6 | H96: 0.2 | I96: 9.3 | J96: 46 | K96: пром. | L96: 1.89
D100: итого | F100: =SUM(F91:F96) -> 803 | G100: =SUM(G91:G96) -> 27.99 | H100: 32.08 | I100: 97.6 | J100: 837.96 | L100: =SUM(L91:L96) -> 224.27
A101: =A83 -> 1 | B101: =B83 -> 5 | C101: Итого за день: | F101: =SUM(F90,F100) -> 1363 | G101: =SUM(G90,G100) -> 55.13 | H101: 51.45 | I101: 189.44 | J101: 1491.16 | L101: =L90+L100 -> 373.79
A102: 2 | B102: 1 | C102: Завтрак | D102: хлеб | E102: Бутерброд с маслом,сыром(батон) | F102: 50 | G102: 5.95 | H102: 13 | I102: 12.73 | J102: 192.95 | K102: ="3" -> 3 | L102: 44.59
D103: гор.блюдо | E103: Каша пшенная вязкая с маслом сливочным | F103: 205 | G103: 8.84 | H103: 12.77 | I103: 41.23 | J103: 306.88 | K103: ="257" -> 257 | L103: 32.12
D104: гор.напиток | E104: Какао с молоком | F104: 200 | G104: 4 | H104: 3.68 | I104: 25.8 | J104: 148.12 | K104: ="642" -> 642 | L104: 32.82
D105: кисломол. | E105: Йогурт | F105: 130 | G105: 2.8 | H105: 2.5 | I105: 15 | J105: 93 | K105: пром. | L105: 34.8
D106: хлеб | E106: Хлеб пшеничный витаминизированный | F106: 35 | G106: 2.8 | H106: 0.35 | I106: 16.8 | J106: 84 | K106: пром. | L106: 3.3
D107: хлеб | E107: Хлеб ржаной | F107: 20 | G107: 1.6 | H107: 0.2 | I107: 9.3 | J107: 46 | K107: пром. | L107: 1.89
D109: итого | F109: =SUM(F102:F108) -> 640 | G109: =SUM(G102:G108) -> 25.99 | H109: 32.5 | I109: 120.86 | J109: 870.95 | L109: =SUM(L102:L107) -> 149.52
A110: =A102 -> 2 | B110: =B102 -> 1 | C110: Обед | D110: закуска | E110: Овощи свежие со сладким перцем(огурец,помидор,перец сладкий) | F110: 60 | G110: 0.46 | I110: 1.63 | J110: 8.27 | K110: ="572" -> 572 | L110: 37.31
D111: 1 блюдо | E111: Суп картофельный с горохом на курином бульоне,гренками | F111: 260 | G111: 9.37 | H111: 3.4 | I111: 24.39 | J111: 170.06 | K111: ="139" -> 139 | L111: 23.2
D112: 2 блюдо | E112: Плов ( с говядиной) | F112: 250 | G112: 18.54 | H112: 17.9 | I112: 52.97 | J112: 447.21 | K112: ="403" -> 403 | L112: 128.04
D113: напиток | E113: Напиток вишневый | F113: 200 | G113: 0.32 | H113: 0.08 | I113: 26.88 | J113: 103.51 | K113: ТТК | L113: 31.94
D114: хлеб бел. | E114: Хлеб пшеничный витаминизированный | F114: 20 | G114: 1.6 | H114: 0.25 | I114: 9.6 | J114: 48 | K114: пром. | L114: 1.89
D115: хлеб черн. | E115: Хлеб ржаной | F115: 20 | G115: 1.6 | H115: 0.2 | I115: 9.3 | J115: 46 | K115: пром. | L115: 1.89
D119: итого | F119: 810 | G119: =SUM(G110:G115) -> 31.89 | H119: 21.83 | I119: 124.77 | J119: 823.05 | L119: =SUM(L110:L115) -> 224.27
A120: =A102 -> 2 | B120: =B102 -> 1 | C120: Итого за день: | F120: =SUM(F109,F119) -> 1450 | G120: =SUM(G109,G119) -> 57.88 | H120: 54.33 | I120: 245.63 | J120: 1694 | L120: =L109+L119 -> 373.79
A121: 2 | B121: 2 | C121: Завтрак | D121: хлеб | E121: Бутерброд с маслом(батон) | F121: 35 | G121: 2.18 | H121: 9.25 | I121: 13.88 | J121: 148.55 | K121: ="1" -> 1 | L121: 25.92
D122: гор. блюдо | E122: Биточки рыбные(паровые) из филе минтая | F122: 75 | G122: 11.08 | H122: 2.39 | I122: 7.55 | J122: 97.05 | K122: ="389" -> 389 | L122: 58.53
D123: гор. блюдо | E123: Пюре картофельное | F123: 150 | G123: 3.14 | H123: 5.63 | I123: 20.15 | J123: 148.4 | K123: ="472" -> 472 | L123: 35.65
D124: гор.напиток | E124: Кофейный напиток с молоком | F124: 200 | G124: 1.87 | I124: 24.05 | J124: 119.92 | K124: ="692" -> 692 | L124: 14.37
D125: сладкое | E125: Джем | F125: 20 | I125: 11.4 | J125: 46 | K125: пром. | L125: 10.8
D126: хлеб | E126: Хлеб пшеничный витаминизированный | F126: 25 | G126: 2 | H126: 0.25 | I126: 12 | J126: 60 | K126: пром. | L126: 2.36
D127: хлеб | E127: Хлеб ржаной | F127: 20 | G127: 1.6 | H127: 0.2 | I127: 9.3 | J127: 46 | K127: пром. | L127: 1.89
D128: итого | F128: =SUM(F121:F127) -> 525 | G128: =SUM(G121:G127) -> 21.87 | H128: 17.72 | I128: 98.33 | J128: 665.92 | L128: =SUM(L121:L127) -> 149.52
A129: =A121 -> 2 | B129: =B121 -> 2 | C129: Обед | D129: закуска | E129: Огурчик пикантный | F129: 60 | G129: 0.39 | H129: 4.99 | I129: 0.99 | J129: 50.44 | K129: ТТК | L129: 33.8
D130: 1 блюдо | E130: Щи по-уральски с крупой на мясном бульоне со сметаной | F130: 260 | G130: 4.77 | H130: 8.57 | I130: 7.7 | J130: 137.1 | K130: ="124" -> 124 | L130: 50.48
D131: 2 блюдо | E131: Рыба (минтай) запеченная с сыром | F131: 90 | G131: 17.96 | H131: 6.55 | I131: 0.16 | J131: 156.81 | K131: ТТК | L131: 93.49
D132: гарнир | E132: Пюре картофельное | F132: 150 | G132: 3.14 | H132: 5.63 | I132: 20.15 | J132: 148.4 | K132: ="472" -> 472 | L132: 35.65
D133: напиток | E133: Напиток из плодов шиповника | F133: 200 | G133: 0.63 | I133: 18.95 | J133: 99.27 | K133: 705 | L133: 6.13
D134: хлеб бел. | E134: Хлеб пшеничный витаминизированный | F134: 30 | G134: 2.4 | H134: 0.3 | I134: 14.4 | J134: 72 | K134: пром. | L134: 2.83
D135: хлеб черн. | E135: Хлеб ржаной | F135: 20 | G135: 1.6 | H135: 0.2 | I135: 9.3 | J135: 46 | K135: пром. | L135: 1.89
D138: итого | F138: =SUM(F129:F135) -> 810 | G138: =SUM(G129:G135) -> 30.89 | H138: 26.24 | I138: 71.65 | J138: 710.02 | L138: =SUM(L129:L135) -> 224.27
A139: =A121 -> 2 | B139: =B121 -> 2 | C139: Итого за день: | F139: =SUM(F128,F138) -> 1335 | G139: =SUM(G128,G138) -> 52.76 | H139: 43.96 | I139: 169.98 | J139: 1375.94 | L139: =L128+L138 -> 373.79
A140: 2 | B140: 3 | C140: Завтрак | D140: гор. блюдо | E140: Макаронные изделия с рубленой курицей и сыром | F140: 250 | G140: 27.76 | H140: 14.55 | I140: 45.56 | J140: 437.64 | K140: ТТК | L140: 97.67
D141: закуска | E141: Помидор пикантный(подгарнировка) | F141: 25 | G141: 0.15 | H141: 2 | I141: 0.73 | J141: 21.48 | K141: ТТК | L141: 14.21
D142: напиток | E142: Молочко витаминизированное | F142: 200 | G142: 2.8 | H142: 3.2 | I142: 4.7 | J142: 59 | K142: пром. | L142: 30.36
D143: гор. напиток | E143: Чай с сахаром | F143: 200 | G143: 0.05 | I143: 14.93 | J143: 57.35 | K143: ="685" -> 685 | L143: 3.03
D144: хлеб | E144: Хлеб пшеничный витаминизированный | F144: 25 | G144: 2 | H144: 0.25 | I144: 12 | J144: 60 | K144: пром. | L144: 2.36
D145: хлеб | E145: Хлеб ржаной | F145: 20 | G145: 1.6 | H145: 0.2 | I145: 9.3 | J145: 46 | K145: пром. | L145: 1.89
D147: итого | F147: =SUM(F140:F145) -> 720 | G147: =SUM(G140:G145) -> 34.36 | H147: =SUM(H140:H145) -> 20.2 | I147: =SUM(I140:I145) -> 87.22 | J147: =SUM(J140:J145) -> 681.47 | L147: =SUM(L140:L145) -> 149.52
A148: =A140 -> 2 | B148: =B140 -> 3 | C148: Обед | D148: закуска | E148: Помидор пикантный | F148: 60 | G148: 0.36 | H148: 5.99 | I148: 1.74 | J148: 62.32 | K148: ТТК | L148: 34.74
D149: 1 блюдо | E149: Борщ с морской капустой, картофелем, сметаной | F149: 260 | G149: 1.58 | H149: 5.2 | I149: 11.53 | J149: 100.23 | K149: ФБУН | L149: 23.14
D150: 2 блюдо | E150: Паприкаш из филе грудки цыпленка | F150: 110 | G150: 17.73 | H150: 7.98 | I150: 4.83 | J150: 173.62 | K150: ТТК | L150: 94.48
D151: гарнир | E151: Макаронные изделия отварные | F151: 150 | G151: 5.63 | H151: 4.89 | I151: 36.44 | J151: 212.33 | K151: ="469" -> 469 | L151: 17.64
D152: напиток | E152: Компот из кураги | F152: 200 | G152: 1.1 | I152: 33.08 | J152: 129.2 | K152: ="588" -> 588 | L152: 9.88
D153: булочное | E153: Коржик "Березка" | F153: 70 | G153: 4.5 | H153: 8 | I153: 43 | J153: 276.9 | L153: 38.72
D154: хлеб бел. | E154: Хлеб пшеничный витаминизированный | F154: 40 | G154: 3.2 | H154: 0.4 | I154: 19.2 | J154: 96 | K154: пром. | L154: 3.78
D155: хлеб черн. | E155: Хлеб ржаной | F155: 20 | G155: 1.6 | H155: 0.2 | I155: 9.3 | J155: 46 | K155: пром. | L155: 1.89
D157: итого | F157: =SUM(F148:F155) -> 910 | G157: =SUM(G148:G155) -> 35.7 | H157: 32.66 | I157: 159.12 | J157: 1096.6 | L157: =SUM(L148:L155) -> 224.27
A158: =A140 -> 2 | B158: =B140 -> 3 | C158: Итого за день: | F158: =SUM(F147,F157) -> 1630 | G158: =SUM(G147,G157) -> 70.06 | H158: 52.86 | I158: 246.34 | J158: 1778.07 | L158: =L147+L157 -> 373.79
A159: 2 | B159: 4 | C159: Завтрак | D159: гор.блюдо | E159: Запеканка из творога со сгущеным молоком | F159: 80 | G159: 12.79 | H159: 9.26 | I159: 16.77 | J159: 200.08 | K159: ="297" -> 297 | L159: 71.8
D160: гор.блюдо | E160: Каша рисовая вязкая с маслом сливочным | F160: 210 | G160: 6.02 | H160: 11.67 | I160: 39.42 | J160: 284.73 | K160: ="257" -> 257 | L160: 46.17
D161: напиток | E161: Напиток с витаминами Витошка | F161: 200 | I161: 19.4 | J161: 78 | K161: ТТК | L161: 10.07
D162: фрукты | E162: Фрукты свежие (яблоко) | F162: 110 | G162: 0.44 | I162: 12.43 | J162: 50.6 | L162: 16.76
D163: хлеб | E163: Хлеб пшеничный витаминизированный | F163: 30 | G163: 2.4 | H163: 0.3 | I163: 14.4 | J163: 72 | K163: пром. | L163: 2.83
D164: хлеб | E164: Хлеб ржаной | F164: 20 | G164: 1.6 | H164: 0.2 | I164: 9.3 | J164: 46 | K164: пром. | L164: 1.89
D166: итого | F166: =SUM(F159:F164) -> 650 | G166: =SUM(G159:G164) -> 23.25 | H166: 21.43 | I166: 111.72 | J166: 731.41 | L166: =SUM(L159:L164) -> 149.52
A167: =A159 -> 2 | B167: =B159 -> 4 | C167: Обед | D167: закуска | E167: Огурчик пикантный | F167: 60 | G167: 0.39 | H167: 4.99 | I167: 0.99 | J167: 50.44 | K167: ТТК | L167: 33.8
D168: 1 блюдо | E168: Рассольник ленинградский со сметаной | F168: 260 | G168: 2.1 | H168: 4.56 | I168: 16.36 | J168: 116.91 | K168: ="129" -> 129 | L168: 26.81
D169: 2 блюдо | E169: Филе голени индейки тушеное в сметанном соусе | F169: 110 | G169: 17.37 | H169: 12.5 | I169: 4.73 | J169: 200.68 | K169: ="493" -> 493 | L169: 95.49
D170: гарнир | E170: Пюре картофельное | F170: 150 | G170: 3.15 | H170: 5.6 | I170: 20.18 | J170: 148.4 | K170: ="472" -> 472 | L170: 35.65
D171: напиток | E171: Напиток из брусники | F171: 200 | G171: 0.32 | H171: 0.08 | I171: 26.88 | J171: 103.51 | K171: ТТК | L171: 28.74
D172: хлеб бел. | E172: Хлеб пшеничный витаминизированный | F172: 20 | G172: 1.6 | H172: 0.2 | I172: 9.6 | J172: 48 | K172: пром. | L172: 1.89
D173: хлеб черн. | E173: Хлеб ржаной | F173: 20 | G173: 1.6 | H173: 0.2 | I173: 9.3 | J173: 46 | K173: пром. | L173: 1.89
D176: итого | F176: =SUM(F167:F173) -> 820 | G176: =SUM(G167:G173) -> 26.53 | H176: 28.13 | I176: 88.04 | J176: 713.94 | L176: =SUM(L167:L173) -> 224.27
A177: =A159 -> 2 | B177: =B159 -> 4 | C177: Итого за день: | F177: =SUM(F166,F176) -> 1470 | G177: =SUM(G166,G176) -> 49.78 | H177: 49.56 | I177: 199.76 | J177: 1445.35 | L177: =L166+L176 -> 373.79
A178: 2 | B178: 5 | C178: Завтрак | D178: гор. блюдо | E178: Омлет натуральный с маслом сливочным | F178: 155 | G178: 15.54 | H178: 20.71 | I178: 2.81 | J178: 260.02 | K178: ="284" -> 284 | L178: 65.4
D179: закуска | E179: Огурцы свежие с салатом айсберг(подгарнировка) | F179: 50 | G179: 0.47 | I179: 1.82 | J179: 8.8 | K179: ТТК | L179: 30.94
D180: гор.напиток | E180: Чай с сахаром, лимоном | F180: 207 | G180: 0.11 | I180: 15.18 | J180: 58.28 | K180: ="686" -> 686 | L180: 7.33
D181: булочное | E181: Маффины | F181: 50 | G181: 2.6 | H181: 12.2 | I181: 23 | J181: 209.75 | L181: 42
D182: хлеб | E182: Хлеб пшеничный Уральское солнышко | F182: 20 | G182: 1.7 | H182: 0.8 | I182: 11.04 | J182: 59 | K182: пром. | L182: 1.96
D183: хлеб | E183: Хлеб ржаной | F183: 20 | G183: 1.6 | H183: 0.2 | I183: 9.3 | J183: 46 | K183: пром. | L183: 1.89
D185: итого | F185: =SUM(F178:F183) -> 502 | G185: =SUM(G178:G183) -> 22.02 | H185: 33.91 | I185: 63.15 | J185: 641.85 | L185: =SUM(L178:L183) -> 149.52
A186: =A178 -> 2 | B186: =B178 -> 5 | C186: Обед | D186: закуска | E186: Помидор пикантный | F186: 60 | G186: 0.36 | H186: 5.99 | I186: 1.74 | J186: 62.32 | K186: ТТК | L186: 34.74
D187: 1 блюдо | E187: Суп пюре из разных овощей с цветной капустой,гренками | F187: 260 | G187: 4.65 | H187: 5.77 | I187: 22.64 | J187: 161.68 | K187: ="167" -> 167 | L187: 35.22
D188: 2 блюдо | E188: Кнели из говядины | F188: 90 | G188: 13.51 | H188: 11.35 | I188: 3.49 | J188: 173.4 | K188: ="48" -> 48 | L188: 103.3
D189: гарнир | E189: Каша гречневая вязкая с овощами | F189: 150 | G189: 4.5 | H189: 7.32 | I189: 24.19 | J189: 175.6 | K189: ФБУН | L189: 16.52
D190: напиток | E190: Напиток из смородины | F190: 200 | G190: 0.57 | I190: 25.88 | J190: 100.46 | K190: ТТК | L190: 30.14
D191: хлеб бел. | E191: Хлеб пшеничный Уральское солнышко | F191: 25 | G191: 2.12 | H191: 1 | I191: 13.8 | J191: 73.75 | K191: пром. | L191: 2.46
D192: хлеб черн. | E192: Хлеб ржаной | F192: 20 | G192: 1.6 | H192: 0.2 | I192: 9.3 | J192: 46 | K192: пром. | L192: 1.89
D195: итого | F195: =SUM(F186:F192) -> 805 | G195: =SUM(G186:G192) -> 27.31 | H195: 31.63 | I195: 101.04 | J195: 793.21 | L195: =SUM(L186:L192) -> 224.27
A196: =A178 -> 2 | B196: =B178 -> 5 | C196: Итого за день: | F196: =SUM(F185,F195) -> 1307 | G196: =G185+G195 -> 49.33 | H196: 65.54 | I196: =I185+I195 -> 164.19 | J196: =J185+J195 -> 1435.06 | L196: 373.79
C197: Среднее значение за период: | F197: =(F24+F43+F63+F82+F101+F120+F139+F158+F177+F196)/(IF(F24=0,0,1)+IF(F43=0,0,1)+IF(F63=0,0,1)+IF(F82=0,0,1)+IF(F101=0,0,1)+IF(F120=0,0,1)+IF(F139=0,0,1)+IF(F158=0,0,1)+IF(F177=0,0,1)+IF(F196=0,0,1)) -> 1444.2 | G197: =(G24+G43+G63+G82+G101+G120+G139+G158+G177+G196)/(IF(G24=0,0,1)+IF(G43=0,0,1)+IF(G63=0,0,1)+IF(G82=0,0,1)+IF(G101=0,0,1)+IF(G120=0,0,1)+IF(G139=0,0,1)+IF(G158=0,0,1)+IF(G177=0,0,1)+IF(G196=0,0,1)) -> 58.457 | H197: =(H24+H43+H63+H82+H101+H120+H139+H158+H177+H196)/(IF(H24=0,0,1)+IF(H43=0,0,1)+IF(H63=0,0,1)+IF(H82=0,0,1)+IF(H101=0,0,1)+IF(H120=0,0,1)+IF(H139=0,0,1)+IF(H158=0,0,1)+IF(H177=0,0,1)+IF(H196=0,0,1)) -> 54.784 | I197: =(I24+I43+I63+I82+I101+I120+I139+I158+I177+I196)/(IF(I24=0,0,1)+IF(I43=0,0,1)+IF(I63=0,0,1)+IF(I82=0,0,1)+IF(I101=0,0,1)+IF(I120=0,0,1)+IF(I139=0,0,1)+IF(I158=0,0,1)+IF(I177=0,0,1)+IF(I196=0,0,1)) -> 211.971 | J197: =(J24+J43+J63+J82+J101+J120+J139+J158+J177+J196)/(IF(J24=0,0,1)+IF(J43=0,0,1)+IF(J63=0,0,1)+IF(J82=0,0,1)+IF(J101=0,0,1)+IF(J120=0,0,1)+IF(J139=0,0,1)+IF(J158=0,0,1)+IF(J177=0,0,1)+IF(J196=0,0,1)) -> 1573.053 | L197: =(L24+L43+L63+L82+L101+L120+L139+L158+L177+L196)/(IF(L24=0,0,1)+IF(L43=0,0,1)+IF(L63=0,0,1)+IF(L82=0,0,1)+IF(L101=0,0,1)+IF(L120=0,0,1)+IF(L139=0,0,1)+IF(L158=0,0,1)+IF(L177=0,0,1)+IF(L196=0,0,1)) -> 373.79
